[Event "Early-Titled-Tuesday-Blitz-February-13-2024"]
[Site "Chess.com"]
[Date "2024.02.13"]
[Round "7"]
[White "johnmez"]
[Black "HelvertHernandez"]
[Result "1-0"]
[WhiteElo "2280"]
[BlackElo "1962"]
[TimeControl "180+1"]
[EndTime "9:16:09 PST"]
[Termination "johnmez won by checkmate"]

1. d4 {[%clk 0:03:00.9]} 1... Nf6 {[%clk 0:02:58.2]} 2. c4 {[%clk 0:03:01.5]}
2... e6 {[%clk 0:02:57]} 3. Nc3 {[%clk 0:03:02.1]} 3... d5 {[%clk 0:02:53.4]} 4.
cxd5 {[%clk 0:03:01.7]} 4... exd5 {[%clk 0:02:52.5]} 5. Bg5 {[%clk 0:03:02.3]}
5... c6 {[%clk 0:02:51.5]} 6. e3 {[%clk 0:03:02.9]} 6... Be7 {[%clk 0:02:50.4]}
7. Bd3 {[%clk 0:03:03.3]} 7... O-O {[%clk 0:02:49.5]} 8. h3 {[%clk 0:02:58.4]}
8... Re8 {[%clk 0:02:49.2]} 9. Nf3 {[%clk 0:02:57.7]} 9... Ne4 {[%clk
0:02:47.1]} 10. Bf4 {[%clk 0:02:51.5]} 10... Bb4 {[%clk 0:02:40.1]} 11. Qc2
{[%clk 0:02:48.7]} 11... Qa5 {[%clk 0:02:35.1]} 12. O-O {[%clk 0:02:27.1]} 12...
Nxc3 {[%clk 0:02:17.2]} 13. bxc3 {[%clk 0:02:28]} 13... Bxc3 {[%clk 0:02:16.3]}
14. Rac1 {[%clk 0:02:26.5]} 14... Bb4 {[%clk 0:02:14.8]} 15. Bxh7+ {[%clk
0:02:26.5]} 15... Kh8 {[%clk 0:02:15]} 16. Ng5 {[%clk 0:02:11]} 16... Qc7 {[%clk
0:02:01.3]} 17. Bxc7 {[%clk 0:02:09.1]} 17... Na6 {[%clk 0:01:51.9]} 18. Nxf7#
{[%clk 0:02:06.3]} 1-0

[Event "Early-Titled-Tuesday-Blitz-February-13-2024"]
[Site "Chess.com"]
[Date "2024.02.13"]
[Round "7"]
[White "MarcoRiehle"]
[Black "jefferyx"]
[Result "0-1"]
[WhiteElo "2870"]
[BlackElo "3019"]
[TimeControl "180+1"]
[EndTime "9:16:43 PST"]
[Termination "jefferyx won by resignation"]

1. e4 {[%clk 0:03:00.9]} 1... c5 {[%clk 0:02:59.9]} 2. a3 {[%clk 0:03:01]} 2...
g6 {[%clk 0:02:55.7]} 3. h4 {[%clk 0:03:00.7]} 3... h6 {[%clk 0:02:48.1]} 4. h5
{[%clk 0:03:01]} 4... g5 {[%clk 0:02:48.4]} 5. Nc3 {[%clk 0:03:01.7]} 5... Bg7
{[%clk 0:02:48.5]} 6. Bc4 {[%clk 0:03:01.9]} 6... Nc6 {[%clk 0:02:48.3]} 7. d3
{[%clk 0:03:02]} 7... e6 {[%clk 0:02:47.3]} 8. f4 {[%clk 0:03:01.9]} 8... gxf4
{[%clk 0:02:36.8]} 9. Bxf4 {[%clk 0:03:02.8]} 9... Be5 {[%clk 0:02:37]} 10. Qd2
{[%clk 0:02:57.1]} 10... Bxf4 {[%clk 0:02:29.5]} 11. Qxf4 {[%clk 0:02:58]} 11...
Qg5 {[%clk 0:02:29.3]} 12. Qf2 {[%clk 0:02:56.4]} 12... d6 {[%clk 0:02:17]} 13.
Nf3 {[%clk 0:02:55.8]} 13... Qf6 {[%clk 0:02:15.5]} 14. O-O-O {[%clk 0:02:55]}
14... a6 {[%clk 0:02:15.2]} 15. Rhf1 {[%clk 0:02:45.3]} 15... Nge7 {[%clk
0:02:11.6]} 16. Qe3 {[%clk 0:02:41.5]} 16... Ne5 {[%clk 0:02:07.4]} 17. d4
{[%clk 0:02:31.3]} 17... Nxc4 {[%clk 0:02:04.3]} 18. Qe2 {[%clk 0:02:31.5]}
18... b5 {[%clk 0:02:01.5]} 19. e5 {[%clk 0:02:31.6]} 19... Qf4+ {[%clk
0:01:59.8]} 20. Kb1 {[%clk 0:02:31.4]} 20... Qe3 {[%clk 0:01:55.7]} 21. exd6
{[%clk 0:02:29.1]} 21... Qxe2 {[%clk 0:01:48.4]} 22. Nxe2 {[%clk 0:02:28.8]}
22... Nxd6 {[%clk 0:01:48.8]} 23. dxc5 {[%clk 0:02:27.3]} 23... Nc4 {[%clk
0:01:44.3]} 24. Rfe1 {[%clk 0:02:20.4]} 24... Bb7 {[%clk 0:01:44.4]} 25. Nc3
{[%clk 0:02:15.7]} 25... Rc8 {[%clk 0:01:35.5]} 26. b4 {[%clk 0:02:14.8]} 26...
Nxa3+ {[%clk 0:01:34.7]} 27. Ka2 {[%clk 0:02:14.7]} 27... Nxc2 {[%clk
0:01:33.9]} 0-1

[Event "Early-Titled-Tuesday-Blitz-February-13-2024"]
[Site "Chess.com"]
[Date "2024.02.13"]
[Round "7"]
[White "Zampronha1971"]
[Black "ChessBliss09"]
[Result "1-0"]
[WhiteElo "2314"]
[BlackElo "2125"]
[TimeControl "180+1"]
[EndTime "9:16:50 PST"]
[Termination "Zampronha1971 won by checkmate"]

1. e4 {[%clk 0:03:00.9]} 1... e5 {[%clk 0:02:59.2]} 2. Nf3 {[%clk 0:03:00.4]}
2... Nc6 {[%clk 0:02:59.7]} 3. d4 {[%clk 0:03:01.2]} 3... exd4 {[%clk
0:02:58.9]} 4. Nxd4 {[%clk 0:03:02.1]} 4... Bc5 {[%clk 0:02:58.7]} 5. Be3 {[%clk
0:03:01.2]} 5... Bb6 {[%clk 0:02:39.6]} 6. Nc3 {[%clk 0:02:59.7]} 6... d6 {[%clk
0:02:38.1]} 7. Qd2 {[%clk 0:02:45.9]} 7... Nf6 {[%clk 0:02:33.6]} 8. f3 {[%clk
0:02:46]} 8... O-O {[%clk 0:02:23.2]} 9. O-O-O {[%clk 0:02:45.8]} 9... a5 {[%clk
0:02:14.1]} 10. g4 {[%clk 0:02:43.4]} 10... a4 {[%clk 0:02:12.9]} 11. g5 {[%clk
0:02:38.3]} 11... Nd7 {[%clk 0:02:11.4]} 12. Nd5 {[%clk 0:02:38.4]} 12... Bxd4
{[%clk 0:02:10.1]} 13. Bxd4 {[%clk 0:02:37.1]} 13... Nxd4 {[%clk 0:02:09.7]} 14.
Qxd4 {[%clk 0:02:37.4]} 14... Qxg5+ {[%clk 0:02:09.2]} 15. f4 {[%clk 0:02:37.7]}
15... Qd8 {[%clk 0:02:08.3]} 16. Rg1 {[%clk 0:02:37.4]} 16... f6 {[%clk
0:02:07]} 17. Bc4 {[%clk 0:02:34.5]} 17... Kh8 {[%clk 0:02:02.6]} 18. a3 {[%clk
0:02:32.8]} 18... Nc5 {[%clk 0:01:53.6]} 19. f5 {[%clk 0:02:23.9]} 19... Re8
{[%clk 0:01:34]} 20. Rg4 {[%clk 0:02:23.7]} 20... c6 {[%clk 0:01:23.8]} 21. Nf4
{[%clk 0:02:23.3]} 21... Nxe4 {[%clk 0:01:14]} 22. Ng6+ {[%clk 0:02:20.6]} 22...
hxg6 {[%clk 0:01:08.8]} 23. Rh4# {[%clk 0:02:21.1]} 1-0

[Event "Early-Titled-Tuesday-Blitz-February-13-2024"]
[Site "Chess.com"]
[Date "2024.02.13"]
[Round "7"]
[White "NastyaHn"]
[Black "Blitzking642"]
[Result "1-0"]
[WhiteElo "2406"]
[BlackElo "2525"]
[TimeControl "180+1"]
[EndTime "9:16:56 PST"]
[Termination "NastyaHn won by resignation"]

1. Nc3 {[%clk 0:03:00.9]} 1... e5 {[%clk 0:02:56.1]} 2. Nf3 {[%clk 0:03:00.5]}
2... Nc6 {[%clk 0:02:54.5]} 3. d4 {[%clk 0:03:00.3]} 3... exd4 {[%clk 0:02:54]}
4. Nxd4 {[%clk 0:03:00.6]} 4... Nf6 {[%clk 0:02:53.9]} 5. Bg5 {[%clk 0:03:00.4]}
5... Be7 {[%clk 0:02:52.4]} 6. Nf5 {[%clk 0:03:00]} 6... O-O {[%clk 0:02:51.4]}
7. Nxe7+ {[%clk 0:02:56.8]} 7... Qxe7 {[%clk 0:02:50.2]} 8. Nd5 {[%clk
0:02:56.8]} 8... Qe5 {[%clk 0:02:46.2]} 9. Bxf6 {[%clk 0:02:46.5]} 9... gxf6
{[%clk 0:02:47.1]} 10. c3 {[%clk 0:02:46.7]} 10... b5 {[%clk 0:02:27.5]} 11. e3
{[%clk 0:02:44.4]} 11... b4 {[%clk 0:02:25.9]} 12. c4 {[%clk 0:02:28.6]} 12...
Qxb2 {[%clk 0:02:17.8]} 13. Bd3 {[%clk 0:02:27.9]} 13... Qe5 {[%clk 0:02:13.3]}
14. O-O {[%clk 0:02:26.2]} 14... Bb7 {[%clk 0:01:49.8]} 15. f4 {[%clk
0:02:24.9]} 15... Qd6 {[%clk 0:01:40.5]} 16. Rf3 {[%clk 0:02:08.7]} 16... f5
{[%clk 0:01:29.1]} 17. Bxf5 {[%clk 0:02:05.4]} 17... Kh8 {[%clk 0:01:25.1]} 18.
Rh3 {[%clk 0:02:01.5]} 1-0

[Event "Early-Titled-Tuesday-Blitz-February-13-2024"]
[Site "Chess.com"]
[Date "2024.02.13"]
[Round "7"]
[White "agvania123"]
[Black "Lion-Al-Messi"]
[Result "0-1"]
[WhiteElo "2384"]
[BlackElo "2575"]
[TimeControl "180+1"]
[EndTime "9:16:57 PST"]
[Termination "Lion-Al-Messi won by checkmate"]

1. c4 {[%clk 0:03:00.9]} 1... c5 {[%clk 0:02:59.5]} 2. Nc3 {[%clk 0:03:00.2]}
2... Nc6 {[%clk 0:02:58]} 3. g3 {[%clk 0:02:59.7]} 3... g6 {[%clk 0:02:55.7]} 4.
Bg2 {[%clk 0:02:59.9]} 4... Bg7 {[%clk 0:02:56]} 5. e4 {[%clk 0:03:00.4]} 5...
Nd4 {[%clk 0:02:54.4]} 6. d3 {[%clk 0:02:58.4]} 6... d6 {[%clk 0:02:54.7]} 7. h3
{[%clk 0:02:51.3]} 7... e6 {[%clk 0:02:54.5]} 8. Nge2 {[%clk 0:02:50.9]} 8...
Ne7 {[%clk 0:02:54.8]} 9. O-O {[%clk 0:02:50.5]} 9... O-O {[%clk 0:02:55.1]} 10.
f4 {[%clk 0:02:43]} 10... a6 {[%clk 0:02:55.2]} 11. Kh2 {[%clk 0:02:36.8]} 11...
Rb8 {[%clk 0:02:54.2]} 12. a4 {[%clk 0:02:36.3]} 12... Qc7 {[%clk 0:02:48.2]}
13. Be3 {[%clk 0:02:22.5]} 13... Bd7 {[%clk 0:02:41]} 14. Ra3 {[%clk 0:01:49.9]}
14... Nec6 {[%clk 0:02:40.3]} 15. Qd2 {[%clk 0:01:47.7]} 15... f5 {[%clk
0:02:40.1]} 16. exf5 {[%clk 0:01:46.4]} 16... gxf5 {[%clk 0:02:39.3]} 17. Bf2
{[%clk 0:01:43]} 17... Rbe8 {[%clk 0:02:38.4]} 18. Nxd4 {[%clk 0:01:41.9]} 18...
Nxd4 {[%clk 0:02:36.1]} 19. Ne2 {[%clk 0:01:41.7]} 19... Bc6 {[%clk 0:02:35.1]}
20. Nxd4 {[%clk 0:01:41.2]} 20... cxd4 {[%clk 0:02:34.2]} 21. b4 {[%clk
0:01:38.1]} 21... e5 {[%clk 0:02:32.9]} 22. fxe5 {[%clk 0:01:36.6]} 22... dxe5
{[%clk 0:02:33.8]} 23. b5 {[%clk 0:01:34.5]} 23... Bxg2 {[%clk 0:02:33.1]} 24.
Kxg2 {[%clk 0:01:34.5]} 24... e4 {[%clk 0:02:28.8]} 25. dxe4 {[%clk 0:01:33.6]}
25... fxe4 {[%clk 0:02:29.5]} 26. Bxd4 {[%clk 0:01:33.7]} 26... Rxf1 {[%clk
0:02:27.9]} 27. Bxg7 {[%clk 0:01:21.8]} 27... Rf3 {[%clk 0:02:24.3]} 28. Bb2
{[%clk 0:01:15.6]} 28... Qxg3+ {[%clk 0:02:23.7]} 29. Kh1 {[%clk 0:01:15.4]}
29... Rf1# {[%clk 0:02:23.9]} 0-1

[Event "Early-Titled-Tuesday-Blitz-February-13-2024"]
[Site "Chess.com"]
[Date "2024.02.13"]
[Round "7"]
[White "ExtremeLearner"]
[Black "Dinamo3"]
[Result "0-1"]
[WhiteElo "2372"]
[BlackElo "2534"]
[TimeControl "180+1"]
[EndTime "9:17:03 PST"]
[Termination "Dinamo3 won by resignation"]

1. d4 {[%clk 0:02:44.2]} 1... Nf6 {[%clk 0:02:58.8]} 2. c4 {[%clk 0:02:42.3]}
2... g6 {[%clk 0:02:59.4]} 3. Nc3 {[%clk 0:02:39.4]} 3... Bg7 {[%clk 0:02:59.5]}
4. e4 {[%clk 0:02:31.9]} 4... d6 {[%clk 0:03:00.1]} 5. Be2 {[%clk 0:02:25.9]}
5... O-O {[%clk 0:03:00.5]} 6. Be3 {[%clk 0:02:22.2]} 6... e5 {[%clk 0:03:00.2]}
7. d5 {[%clk 0:02:20.5]} 7... a5 {[%clk 0:03:00.7]} 8. h4 {[%clk 0:02:19.3]}
8... Na6 {[%clk 0:03:01.1]} 9. h5 {[%clk 0:02:14.2]} 9... Nc5 {[%clk 0:03:01.3]}
10. h6 {[%clk 0:02:11.1]} 10... Bh8 {[%clk 0:03:01.3]} 11. f3 {[%clk 0:02:09.8]}
11... c6 {[%clk 0:03:00.1]} 12. b3 {[%clk 0:02:00]} 12... cxd5 {[%clk
0:02:59.6]} 13. cxd5 {[%clk 0:01:53.8]} 13... Bd7 {[%clk 0:02:59.7]} 14. Nh3
{[%clk 0:01:40.3]} 14... Nh5 {[%clk 0:02:40.5]} 15. Nf2 {[%clk 0:01:11.3]} 15...
Ng3 {[%clk 0:02:38.6]} 16. Rh2 {[%clk 0:01:10.4]} 16... Nxe2 {[%clk 0:02:37.6]}
17. Qxe2 {[%clk 0:01:09.9]} 17... b5 {[%clk 0:02:37.5]} 18. Nxb5 {[%clk
0:01:07.3]} 18... Qb6 {[%clk 0:02:32.1]} 19. Na3 {[%clk 0:00:58.3]} 19... Qb4+
{[%clk 0:02:30.3]} 0-1

[Event "Early-Titled-Tuesday-Blitz-February-13-2024"]
[Site "Chess.com"]
[Date "2024.02.13"]
[Round "7"]
[White "amylazy"]
[Black "DIMONBANAN"]
[Result "1-0"]
[WhiteElo "2466"]
[BlackElo "2561"]
[TimeControl "180+1"]
[EndTime "9:17:06 PST"]
[Termination "amylazy won by resignation"]

1. d4 {[%clk 0:02:58.6]} 1... d5 {[%clk 0:02:59.7]} 2. c4 {[%clk 0:02:58.1]}
2... e6 {[%clk 0:02:59.7]} 3. Nf3 {[%clk 0:02:58.5]} 3... Nf6 {[%clk 0:02:59.6]}
4. g3 {[%clk 0:02:58.6]} 4... dxc4 {[%clk 0:02:59.6]} 5. Bg2 {[%clk 0:02:58.9]}
5... c5 {[%clk 0:02:59.7]} 6. O-O {[%clk 0:02:57.3]} 6... Nc6 {[%clk 0:02:59.4]}
7. Qa4 {[%clk 0:02:45.7]} 7... Bd7 {[%clk 0:02:57.5]} 8. dxc5 {[%clk 0:02:44.9]}
8... Bxc5 {[%clk 0:02:55.6]} 9. Qxc4 {[%clk 0:02:44.4]} 9... Qe7 {[%clk
0:02:54.2]} 10. Nc3 {[%clk 0:02:44.3]} 10... a6 {[%clk 0:02:48.6]} 11. Bg5
{[%clk 0:02:44.7]} 11... b5 {[%clk 0:02:42.4]} 12. Qh4 {[%clk 0:02:40]} 12...
O-O-O {[%clk 0:02:00.8]} 13. Rac1 {[%clk 0:02:37.4]} 13... h6 {[%clk 0:01:47]}
14. Bxf6 {[%clk 0:02:36]} 14... gxf6 {[%clk 0:01:47.3]} 15. Ne4 {[%clk
0:02:32.6]} 15... Bb6 {[%clk 0:01:45.8]} 16. Nxf6 {[%clk 0:02:28.8]} 16... Kb8
{[%clk 0:01:39.3]} 17. Nxd7+ {[%clk 0:02:24.9]} 17... Qxd7 {[%clk 0:01:39.4]}
18. Qe4 {[%clk 0:02:18.1]} 18... Na5 {[%clk 0:01:12.3]} 19. Ne5 {[%clk
0:02:12.1]} 19... Qa7 {[%clk 0:01:12.2]} 20. b4 {[%clk 0:02:11.5]} 1-0

[Event "Early-Titled-Tuesday-Blitz-February-13-2024"]
[Site "Chess.com"]
[Date "2024.02.13"]
[Round "7"]
[White "bubeliang"]
[Black "Grossboss19"]
[Result "0-1"]
[WhiteElo "2820"]
[BlackElo "2620"]
[TimeControl "180+1"]
[EndTime "9:17:35 PST"]
[Termination "Grossboss19 won by resignation"]

1. b3 {[%clk 0:03:00.9]} 1... c5 {[%clk 0:02:58.7]} 2. Bb2 {[%clk 0:03:01.8]}
2... Nc6 {[%clk 0:02:57.9]} 3. f4 {[%clk 0:03:01.2]} 3... d5 {[%clk 0:02:57.6]}
4. e3 {[%clk 0:03:00.9]} 4... f6 {[%clk 0:02:55]} 5. Nf3 {[%clk 0:03:00.7]} 5...
e6 {[%clk 0:02:53]} 6. Bd3 {[%clk 0:02:54.9]} 6... Bd6 {[%clk 0:02:52.4]} 7. O-O
{[%clk 0:02:54.9]} 7... Nge7 {[%clk 0:02:50.3]} 8. Qe1 {[%clk 0:02:54.3]} 8...
O-O {[%clk 0:02:48.7]} 9. Qh4 {[%clk 0:02:50.1]} 9... Nf5 {[%clk 0:02:47.1]} 10.
Qh3 {[%clk 0:02:49.1]} 10... h6 {[%clk 0:02:42.3]} 11. g4 {[%clk 0:02:47.6]}
11... Nfe7 {[%clk 0:02:41.2]} 12. g5 {[%clk 0:02:45.7]} 12... e5 {[%clk
0:02:40.4]} 13. Qg2 {[%clk 0:02:18.4]} 13... fxg5 {[%clk 0:02:26.9]} 14. fxg5
{[%clk 0:02:17.7]} 14... h5 {[%clk 0:02:22.5]} 15. Be2 {[%clk 0:02:12.7]} 15...
Ng6 {[%clk 0:02:18.1]} 16. Nc3 {[%clk 0:01:57.1]} 16... e4 {[%clk 0:02:14.1]}
17. Ne1 {[%clk 0:01:54.3]} 17... Rxf1+ {[%clk 0:02:12.2]} 18. Kxf1 {[%clk
0:01:48.5]} 18... Nh4 {[%clk 0:02:10.3]} 19. Qf2 {[%clk 0:01:48.3]} 19... Qxg5
{[%clk 0:02:03.2]} 20. Nxd5 {[%clk 0:01:11.8]} 20... Bh3+ {[%clk 0:02:00]} 21.
Ng2 {[%clk 0:01:12.4]} 21... Nxg2 {[%clk 0:01:46]} 0-1

[Event "Early-Titled-Tuesday-Blitz-February-13-2024"]
[Site "Chess.com"]
[Date "2024.02.13"]
[Round "7"]
[White "TregubovP"]
[Black "DonkyDonkyDonkey"]
[Result "0-1"]
[WhiteElo "2687"]
[BlackElo "2935"]
[TimeControl "180+1"]
[EndTime "9:17:46 PST"]
[Termination "DonkyDonkyDonkey won by resignation"]

1. e4 {[%clk 0:03:00.9]} 1... c5 {[%clk 0:02:59.3]} 2. Nf3 {[%clk 0:03:00.5]}
2... d6 {[%clk 0:03:00]} 3. d4 {[%clk 0:02:58.8]} 3... cxd4 {[%clk 0:03:00.9]}
4. Qxd4 {[%clk 0:02:59]} 4... Nc6 {[%clk 0:03:00.9]} 5. Qd3 {[%clk 0:02:59.3]}
5... g6 {[%clk 0:02:58.8]} 6. Nc3 {[%clk 0:02:57.8]} 6... Bg7 {[%clk 0:02:59.3]}
7. Be2 {[%clk 0:02:58.1]} 7... Nf6 {[%clk 0:02:59.7]} 8. O-O {[%clk 0:02:57.7]}
8... O-O {[%clk 0:03:00.3]} 9. Nd5 {[%clk 0:02:55.9]} 9... Bg4 {[%clk
0:02:58.3]} 10. c3 {[%clk 0:02:51]} 10... Rc8 {[%clk 0:02:55.7]} 11. h3 {[%clk
0:02:49.4]} 11... Bd7 {[%clk 0:02:52.4]} 12. Bg5 {[%clk 0:02:47.4]} 12... Nxd5
{[%clk 0:02:50.6]} 13. exd5 {[%clk 0:02:47]} 13... Ne5 {[%clk 0:02:51]} 14. Nxe5
{[%clk 0:02:47.1]} 14... Bxe5 {[%clk 0:02:51.9]} 15. Rfe1 {[%clk 0:02:37.4]}
15... Re8 {[%clk 0:02:48.9]} 16. Qe3 {[%clk 0:02:25.8]} 16... Qa5 {[%clk
0:02:43]} 17. Bf3 {[%clk 0:02:13]} 17... b5 {[%clk 0:02:32.5]} 18. a3 {[%clk
0:02:12]} 18... Qa4 {[%clk 0:02:24.2]} 19. Be2 {[%clk 0:02:00.4]} 19... f6
{[%clk 0:02:14.5]} 20. Bh6 {[%clk 0:01:58.1]} 20... Qh4 {[%clk 0:02:13.9]} 21.
Qxa7 {[%clk 0:01:38.8]} 21... Bxh3 {[%clk 0:01:50.9]} 22. Qe3 {[%clk 0:01:10.5]}
22... Bxg2 {[%clk 0:01:32.3]} 23. Kxg2 {[%clk 0:01:07.8]} 23... Qh2+ {[%clk
0:01:32.1]} 24. Kf3 {[%clk 0:01:07.9]} 24... Qh3+ {[%clk 0:01:32.5]} 0-1

[Event "Early-Titled-Tuesday-Blitz-February-13-2024"]
[Site "Chess.com"]
[Date "2024.02.13"]
[Round "7"]
[White "bilosuvenosu06"]
[Black "jakopogi"]
[Result "0-1"]
[WhiteElo "2540"]
[BlackElo "2742"]
[TimeControl "180+1"]
[EndTime "9:18:05 PST"]
[Termination "jakopogi won by resignation"]

1. d4 {[%clk 0:03:00.9]} 1... Nf6 {[%clk 0:03:00]} 2. c4 {[%clk 0:03:00.4]} 2...
e6 {[%clk 0:02:55]} 3. Nc3 {[%clk 0:03:00.3]} 3... Bb4 {[%clk 0:02:55]} 4. e3
{[%clk 0:03:00.2]} 4... c5 {[%clk 0:02:53.6]} 5. Ne2 {[%clk 0:02:58.9]} 5... b6
{[%clk 0:02:53.2]} 6. a3 {[%clk 0:02:58.6]} 6... Bxc3+ {[%clk 0:02:53.4]} 7.
Nxc3 {[%clk 0:02:59.5]} 7... Bb7 {[%clk 0:02:53.8]} 8. d5 {[%clk 0:02:56.8]}
8... d6 {[%clk 0:02:53.4]} 9. Be2 {[%clk 0:02:56.2]} 9... O-O {[%clk 0:02:53.7]}
10. O-O {[%clk 0:02:54.7]} 10... exd5 {[%clk 0:02:51.3]} 11. Bf3 {[%clk
0:02:52.6]} 11... Re8 {[%clk 0:02:50.1]} 12. Nxd5 {[%clk 0:02:51.3]} 12... Nxd5
{[%clk 0:02:49.9]} 13. Bxd5 {[%clk 0:02:51.4]} 13... Bxd5 {[%clk 0:02:48]} 14.
Qxd5 {[%clk 0:02:52.3]} 14... Na6 {[%clk 0:02:48.3]} 15. Bd2 {[%clk 0:02:49.2]}
15... Nc7 {[%clk 0:02:48]} 16. Qd3 {[%clk 0:02:49.4]} 16... d5 {[%clk
0:02:48.1]} 17. Bc3 {[%clk 0:02:48]} 17... dxc4 {[%clk 0:02:46.6]} 18. Qxc4
{[%clk 0:02:48.6]} 18... Qd5 {[%clk 0:02:46.8]} 19. Qg4 {[%clk 0:02:43]} 19...
Ne6 {[%clk 0:02:46.9]} 20. Rad1 {[%clk 0:02:42.7]} 20... Qc6 {[%clk 0:02:47.3]}
21. Rd2 {[%clk 0:02:41.2]} 21... Rad8 {[%clk 0:02:46.6]} 22. Rfd1 {[%clk
0:02:41.7]} 22... Rxd2 {[%clk 0:02:45.8]} 23. Rxd2 {[%clk 0:02:42.6]} 23... h6
{[%clk 0:02:40.4]} 24. Qg3 {[%clk 0:02:42.2]} 24... Qe4 {[%clk 0:02:39.2]} 25.
h3 {[%clk 0:02:34.4]} 25... Qb7 {[%clk 0:02:31.6]} 26. Kh2 {[%clk 0:02:32.6]}
26... Qe7 {[%clk 0:02:28.7]} 27. Rd5 {[%clk 0:02:20.7]} 27... Rd8 {[%clk
0:02:26.6]} 28. Qe5 {[%clk 0:02:10.2]} 28... Rxd5 {[%clk 0:02:21.3]} 29. Qxd5
{[%clk 0:02:11.1]} 29... Qd8 {[%clk 0:02:21.8]} 30. Qe5 {[%clk 0:02:03.8]} 30...
Qc7 {[%clk 0:02:20.7]} 31. f4 {[%clk 0:01:56.8]} 31... Qxe5 {[%clk 0:02:20.8]}
32. Bxe5 {[%clk 0:01:57.7]} 32... Nd8 {[%clk 0:02:21.1]} 33. Bb8 {[%clk
0:01:57.1]} 33... Nc6 {[%clk 0:02:22]} 34. Bd6 {[%clk 0:01:56.1]} 34... f5
{[%clk 0:02:21.2]} 35. g4 {[%clk 0:01:55.6]} 35... g6 {[%clk 0:02:21.7]} 36.
gxf5 {[%clk 0:01:49.8]} 36... gxf5 {[%clk 0:02:22.6]} 37. Kg3 {[%clk 0:01:49.6]}
37... Kf7 {[%clk 0:02:23.3]} 38. Kf3 {[%clk 0:01:50.1]} 38... Ke6 {[%clk
0:02:24]} 39. Bf8 {[%clk 0:01:50.5]} 39... h5 {[%clk 0:02:24]} 40. Bg7 {[%clk
0:01:50.5]} 40... Kd5 {[%clk 0:02:24.2]} 41. Bc3 {[%clk 0:01:46.9]} 41... b5
{[%clk 0:02:23.8]} 42. b3 {[%clk 0:01:45.2]} 42... a5 {[%clk 0:02:22]} 43. Kg3
{[%clk 0:01:42.4]} 43... b4 {[%clk 0:02:22.5]} 44. axb4 {[%clk 0:01:42.1]} 44...
axb4 {[%clk 0:02:23.4]} 45. Bg7 {[%clk 0:01:36.9]} 45... Na5 {[%clk 0:02:22.1]}
46. Kh4 {[%clk 0:01:34.8]} 46... Nxb3 {[%clk 0:02:22.7]} 47. Kxh5 {[%clk
0:01:35.3]} 47... c4 {[%clk 0:02:22.3]} 48. Kg5 {[%clk 0:01:32.2]} 48... c3
{[%clk 0:02:18.5]} 49. h4 {[%clk 0:01:32.1]} 49... Nc5 {[%clk 0:02:18.8]} 50.
Kg6 {[%clk 0:01:25.3]} 50... c2 {[%clk 0:02:12.1]} 51. Bb2 {[%clk 0:01:24.6]}
51... Nd3 {[%clk 0:02:12.7]} 52. Bc1 {[%clk 0:01:23.4]} 52... Nxc1 {[%clk
0:02:13]} 53. h5 {[%clk 0:01:23.3]} 53... Nd3 {[%clk 0:02:13.5]} 54. h6 {[%clk
0:01:23.8]} 54... c1=Q {[%clk 0:02:14.2]} 55. h7 {[%clk 0:01:24.5]} 55... Qh1
{[%clk 0:02:14.7]} 0-1

[Event "Early-Titled-Tuesday-Blitz-February-13-2024"]
[Site "Chess.com"]
[Date "2024.02.13"]
[Round "7"]
[White "Sofia_Blokhin"]
[Black "Bugcrusher"]
[Result "0-1"]
[WhiteElo "2246"]
[BlackElo "2452"]
[TimeControl "180+1"]
[EndTime "9:18:07 PST"]
[Termination "Bugcrusher won by resignation"]

1. d4 {[%clk 0:03:00.9]} 1... e6 {[%clk 0:02:59.6]} 2. c4 {[%clk 0:02:59.9]}
2... Nf6 {[%clk 0:02:59.9]} 3. Nc3 {[%clk 0:02:59.7]} 3... Bb4 {[%clk
0:03:00.1]} 4. e3 {[%clk 0:03:00]} 4... O-O {[%clk 0:02:59.7]} 5. Bd3 {[%clk
0:02:58.4]} 5... d5 {[%clk 0:02:59.7]} 6. Nf3 {[%clk 0:02:56.6]} 6... c5 {[%clk
0:02:59.8]} 7. O-O {[%clk 0:02:56.2]} 7... Nc6 {[%clk 0:03:00]} 8. a3 {[%clk
0:02:54.5]} 8... Bxc3 {[%clk 0:02:59.9]} 9. bxc3 {[%clk 0:02:54.3]} 9... dxc4
{[%clk 0:03:00.4]} 10. Bxc4 {[%clk 0:02:54.1]} 10... Qc7 {[%clk 0:03:01.3]} 11.
Bd3 {[%clk 0:02:52.9]} 11... e5 {[%clk 0:03:01.5]} 12. d5 {[%clk 0:02:46.9]}
12... e4 {[%clk 0:02:27.9]} 13. dxc6 {[%clk 0:02:36.1]} 13... Rd8 {[%clk
0:02:27.3]} 14. cxb7 {[%clk 0:02:23.6]} 14... Bxb7 {[%clk 0:02:28.2]} 15. Qa4
{[%clk 0:02:07.6]} 15... exf3 {[%clk 0:02:11.4]} 16. Bf5 {[%clk 0:01:58.3]}
16... fxg2 {[%clk 0:02:07.5]} 17. Re1 {[%clk 0:01:58]} 17... Qe5 {[%clk
0:01:59.8]} 18. Bh3 {[%clk 0:01:47.8]} 18... Qxc3 {[%clk 0:01:58.2]} 19. Bb2
{[%clk 0:01:44.9]} 19... Qxb2 {[%clk 0:01:56.3]} 20. Rab1 {[%clk 0:01:44]} 20...
Qc3 {[%clk 0:01:43.9]} 21. Rec1 {[%clk 0:01:41.8]} 21... Qd2 {[%clk 0:01:18.8]}
22. Rd1 {[%clk 0:01:37.4]} 22... Qe2 {[%clk 0:01:18.6]} 23. Rxd8+ {[%clk
0:01:13.2]} 23... Rxd8 {[%clk 0:01:17.7]} 24. Qa5 {[%clk 0:01:13.2]} 24... Rd1+
{[%clk 0:01:11.5]} 0-1